fUSD/lending_fUSD_20250426
["ID","MTS","AMOUNT","RATE_DAILY","PERIOD"]
[359061937,1745685038876,-424.79,0.00019896,2]
[359061939,1745685038886,-492.87790255,0.00019896,2]
[359061941,1745685038896,-1228.66,0.00019896,2]
[359061944,1745685038908,-860.82,0.00019896,2]
[359061945,1745685038919,-530.59,0.00019896,2]
[359061948,1745685038929,-631.44,0.00019896,2]
[359061950,1745685038939,-517.69,0.00019896,2]
[359061952,1745685038950,-400.0,0.00019896,2]
[359061954,1745685038960,-422.93,0.00019896,2]
[359061956,1745685038969,-1181.35,0.00019896,2]
[359061957,1745685038979,-400.0,0.00019896,2]
[359061959,1745685038989,-754.69,0.00019896,2]
[359061961,1745685038999,-400.0,0.00019896,2]
[359061962,1745685039009,-400.0,0.00019896,2]
[359061963,1745685039019,-923.84,0.00019896,2]
[359061964,1745685039031,-400.0,0.00019896,2]
[359061965,1745685039041,-2362.85,0.00019896,2]
[359061966,1745685039053,-746.33,0.00019896,2]
[359061967,1745685039063,-433.89,0.00019896,2]
[359061968,1745685039074,-585.25,0.00019896,2]
[359061969,1745685039086,-400.0,0.00019896,2]
[359061970,1745685039097,-740.82,0.00019896,2]
[359061971,1745685039107,-554.34,0.00019896,2]
[359061972,1745685039117,-400.0,0.00019896,2]
[359061973,1745685039130,-400.0,0.00019896,2]
[359061974,1745685039142,-1216.72,0.00019896,2]
[359061975,1745685039153,-590.53,0.00019896,2]
[359061976,1745685039163,-782.57,0.00019896,2]
[359061977,1745685039173,-403.23,0.00019896,2]
[359061978,1745685039184,-400.0,0.00019896,2]
[359061979,1745685039194,-1138.62,0.00019896,2]
[359061980,1745685039204,-488.74,0.00019896,2]
[359061981,1745685039215,-400.0,0.00019896,2]
[359061982,1745685039225,-409.27,0.00019896,2]
[359061983,1745685039236,-970.18,0.00019896,2]
[359061984,1745685039246,-497.02,0.00019896,2]
[359061985,1745685039257,-508.87,0.00019896,2]
[359061986,1745685039267,-766.21,0.00019896,2]
[359061987,1745685039278,-1187.91,0.00019896,2]
[359061988,1745685039288,-300.0,0.00019896,2]
[359061989,1745685039299,-966.86,0.00019896,2]
[359061990,1745685039309,-102037.91,0.00019896,2]
[359061991,1745685039320,-700.65,0.00019896,2]
[359061992,1745685039330,-607.96,0.00019896,2]
[359061993,1745685039339,-654.89,0.00019896,2]
[359061994,1745685039349,-8507.51,0.00019896,2]
[359061995,1745685039359,-400.0,0.00019896,2]
[359061996,1745685039368,-640.37,0.00019896,2]
[359061997,1745685039378,-831.21,0.00019896,2]
[359061998,1745685039388,-735.56,0.00019896,2]
[359061999,1745685039398,-415.79,0.00019896,2]
[359062000,1745685039408,-6125.93,0.00019896,2]
[359062001,1745685039418,-400.0,0.00019896,2]
[359062002,1745685039427,-751.14,0.00019896,2]
[359062003,1745685039437,-501.81,0.00019896,2]
[359062004,1745685039446,-400.0,0.00019896,2]
[359062005,1745685039456,-2260.32,0.00019896,2]
[359062006,1745685039466,-400.0,0.00019896,2]
[359062007,1745685039475,-579.11,0.00019896,2]
[359062008,1745685039485,-478.7,0.00019896,2]
[359062009,1745685039495,-534.21,0.00019896,2]
[359062010,1745685039505,-400.0,0.00019896,2]
[359062011,1745685039515,-676.09,0.00019896,2]
[359062012,1745685039525,-545.56,0.00019896,2]
[359062014,1745685039535,-1883.41,0.00019896,2]
[359062015,1745685039544,-400.0,0.00019896,2]
[359062016,1745685039554,-400.0,0.00019896,2]
[359062017,1745685039563,-852.16,0.00019896,2]
[359062018,1745685039573,-549.33,0.00019896,2]
[359062019,1745685039582,-747.82,0.00019896,2]
[359062020,1745685039591,-400.0,0.00019896,2]
[359062021,1745685039602,-400.0,0.00019896,2]
[359062022,1745685039611,-423.74,0.00019896,2]
[359062023,1745685039621,-660.14,0.00019896,2]
[359062024,1745685039631,-3708.68,0.00019896,2]
[359062025,1745685039640,-400.0,0.00019896,2]
[359062026,1745685039649,-400.0,0.00019896,2]
[359062027,1745685039659,-525.3,0.00019896,2]
[359062028,1745685039669,-851.1,0.00019896,2]
[359062029,1745685039679,-1015.28,0.00019896,2]
[359062030,1745685039688,-144385.31819634,0.00019897,2]
[359062031,1745685039697,-400.0,0.00019897,2]
[359062032,1745685039706,-400.0,0.00019897,2]
[359062033,1745685039717,-742.01,0.00019897,2]
[359062034,1745685039726,-400.0,0.00019897,2]
[359062035,1745685039736,-790.75,0.00019897,2]
[359062036,1745685039745,-711.63,0.00019897,2]
[359062037,1745685039755,-694.03,0.00019897,2]
[359062038,1745685039765,-400.0,0.00019897,2]
[359062039,1745685039775,-448.27,0.00019897,2]
[359062040,1745685039785,-694.29,0.00019897,2]
[359062041,1745685039803,-400.0,0.00019897,2]
[359062042,1745685039819,-400.0,0.00019897,2]
[359062043,1745685039830,-854.45,0.00019897,2]
[359062044,1745685039841,-400.0,0.00019897,2]
[359062045,1745685039851,-400.0,0.00019897,2]
[359062046,1745685039863,-400.0,0.00019897,2]
[359062047,1745685039874,-996.15,0.00019897,2]
[359062048,1745685039886,-454.4,0.00019897,2]
[359062049,1745685039897,-568.18,0.00019897,2]
[359062050,1745685039907,-674.06,0.00019897,2]
[359062051,1745685039920,-400.0,0.00019897,2]
[359062052,1745685039931,-433.64,0.00019897,2]
[359062053,1745685039942,-400.0,0.00019897,2]
[359062054,1745685039952,-538.33,0.00019897,2]
[359062055,1745685039964,-1555.07,0.00019897,2]
[359062056,1745685039974,-400.0,0.00019897,2]
[359062057,1745685039984,-400.0,0.00019897,2]
[359062058,1745685039995,-400.0,0.00019897,2]
[359062059,1745685040006,-400.0,0.00019897,2]
[359062060,1745685040016,-1297.6,0.00019897,2]
[359062061,1745685040027,-400.0,0.00019897,2]
[359062062,1745685040038,-400.0,0.00019897,2]
[359062063,1745685040048,-400.0,0.00019897,2]
[359062064,1745685040058,-400.0,0.00019897,2]
[359062065,1745685040070,-783.23,0.00019897,2]
[359062066,1745685040081,-510.64,0.00019897,2]
[359062067,1745685040091,-685.46,0.00019897,2]
[359062068,1745685040103,-400.0,0.00019897,2]
[359062069,1745685040115,-652.25,0.00019897,2]
[359062070,1745685040125,-400.0,0.00019897,2]
[359062071,1745685040139,-822.4,0.00019897,2]
[359062072,1745685040149,-714.2,0.00019897,2]
[359062073,1745685040159,-634.08,0.00019897,2]
[359062074,1745685040169,-400.0,0.00019897,2]
[359062075,1745685040179,-602.88,0.00019897,2]
[359062076,1745685040189,-654.37,0.00019897,2]
[359062077,1745685040199,-361.98481845,0.00019897,2]
[359062078,1745685040209,-462.15,0.00019897,2]
[359062080,1745685040220,-400.0,0.00019897,2]
[359062082,1745685040230,-462.53,0.00019897,2]
[359062083,1745685040247,-662.16,0.00019897,2]
[359062084,1745685040258,-783.06,0.00019897,2]
[359062085,1745685040268,-4010.85,0.00019897,2]
[359062086,1745685040278,-400.0,0.00019897,2]
[359062087,1745685040288,-400.0,0.00019897,2]
[359062088,1745685040298,-400.0,0.00019897,2]
[359062089,1745685040309,-500.0,0.00019897,2]
[359062090,1745685040319,-802.45,0.00019897,2]
[359062092,1745685040330,-400.0,0.00019897,2]
[359062093,1745685040340,-2293.0,0.00019897,2]
[359062094,1745685040350,-400.0,0.00019897,2]
[359062095,1745685040361,-500.0,0.00019897,2]
[359062096,1745685040373,-500.0,0.00019897,2]
[359062097,1745685040383,-400.0,0.00019897,2]
[359062098,1745685040393,-400.0,0.00019897,2]
[359062099,1745685040404,-400.0,0.00019897,2]
[359062100,1745685040414,-684.36,0.00019897,2]
[359062101,1745685040424,-400.0,0.00019897,2]
[359062102,1745685040435,-400.0,0.00019897,2]
[359062103,1745685040445,-638.96,0.00019897,2]
[359062104,1745685040456,-400.0,0.00019897,2]
[359062105,1745685040466,-400.0,0.00019897,2]
[359062106,1745685040476,-257.12841915,0.00019897,2]
[359062107,1745685040487,-500.0,0.00019897,2]
[359062108,1745685040497,-400.0,0.00019897,2]
[359062109,1745685040507,-400.0,0.00019897,2]
[359062110,1745685040516,-277.0773,0.00019897,2]
[359062111,1745685040526,-488.91,0.00019897,2]
[359062112,1745685040536,-400.0,0.00019897,2]
[359062113,1745685040547,-826.3,0.00019897,2]
[359062114,1745685040557,-400.0,0.00019897,2]
[359062115,1745685040567,-400.0,0.00019897,2]
[359062116,1745685040577,-400.0,0.00019897,2]
[359062117,1745685040586,-438.07,0.00019897,2]
[359062118,1745685040596,-400.0,0.00019897,2]
[359062119,1745685040605,-400.0,0.00019897,2]
[359062120,1745685040615,-649.64,0.00019897,2]
[359062121,1745685040625,-500.0,0.00019897,2]
[359062122,1745685040636,-200.21899272,0.00019897,2]
[359062123,1745685040645,-500.0,0.00019897,2]
[359062124,1745685040656,-436.74,0.00019897,2]
[359062125,1745685040665,-500.0,0.00019897,2]
[359062126,1745685040680,-150.0,0.00019897,2]
[359062127,1745685040690,-400.0,0.00019897,2]
[359062128,1745685040700,-150.0,0.00019897,2]
[359062129,1745685040710,-419.72,0.00019897,2]
[359062130,1745685040720,-402.4,0.00019897,2]
[359062131,1745685040730,-1052.94,0.00019897,2]
[359062132,1745685040740,-4266.32,0.00019897,2]
[359062133,1745685040749,-431.64,0.00019897,2]
[359062134,1745685040759,-400.0,0.00019897,2]
[359062135,1745685040770,-500.0,0.00019897,2]
[359062136,1745685040780,-150.0,0.00019897,2]
[359062137,1745685040790,-711.99,0.00019897,2]
[359062138,1745685040800,-150.0,0.00019897,2]
[359062139,1745685040810,-150.0,0.00019897,2]
[359062140,1745685040821,-150.0,0.00019897,2]
[359062141,1745685040830,-150.0,0.00019897,2]
[359062142,1745685040841,-500.0,0.00019897,2]
[359062143,1745685040851,-400.0,0.00019897,2]
[359062144,1745685040861,-500.0,0.00019897,2]
[359062145,1745685040871,-400.0,0.00019897,2]
[359062146,1745685040881,-443.17,0.00019897,2]
[359062147,1745685040891,-446.52,0.00019897,2]
[359062148,1745685040901,-697.28,0.00019897,2]
[359062149,1745685040912,-400.0,0.00019897,2]
[359062150,1745685040923,-832.0,0.00019897,2]
[359062151,1745685040933,-574.97,0.00019897,2]
[359062152,1745685040944,-868.33,0.00019897,2]
[359062153,1745685040953,-400.0,0.00019897,2]
[359062154,1745685040964,-400.0,0.00019897,2]
[359062155,1745685040974,-411.11,0.00019897,2]
[359062156,1745685040984,-591.08,0.00019897,2]
[359062157,1745685040994,-537.37300832,0.00019898,2]
[359062158,1745685041004,-503.96352801,0.00019898,2]
[359062159,1745685041014,-199.80801917,0.00019898,2]
[359062160,1745685041024,-500.64604961,0.00019898,2]
[359062161,1745685041034,-500.0,0.00019898,2]
[359062162,1745685041044,-400.0,0.00019898,2]
[359062163,1745685041054,-400.0,0.00019898,2]
[359062164,1745685041063,-400.0,0.00019898,2]
[359062165,1745685041074,-400.0,0.00019898,2]
[359062166,1745685041084,-200.0,0.00019899,2]
[359062167,1745685041094,-400.0,0.00019899,2]
[359062168,1745685041104,-400.0,0.00019899,2]
[359062169,1745685041114,-400.0,0.00019899,2]
[359062170,1745685041131,-791.21,0.00019899,2]
[359062171,1745685041141,-400.0,0.00019899,2]
[359062172,1745685041151,-400.0,0.00019899,2]
[359062173,1745685041162,-400.0,0.00019899,2]
[359062174,1745685041172,-385.9230261,0.00019899,2]
[359062175,1745685041182,-400.0,0.00019899,2]
[359062176,1745685041192,-300.0,0.00019899,2]
[359062177,1745685041202,-611.88,0.00019899,2]
[359062178,1745685041212,-200.0,0.00019899,2]
[359062179,1745685041223,-400.0,0.00019899,2]
[359062180,1745685041234,-400.0,0.00019899,2]
[359062181,1745685041244,-323.59592513,0.00019899,2]
[359062182,1745685041254,-400.0,0.00019899,2]
[359062183,1745685041265,-400.0,0.00019899,2]
[359062184,1745685041275,-250.0,0.00019899,2]
[359062185,1745685041286,-400.0,0.00019899,2]
[359062186,1745685041296,-300.0,0.00019899,2]
[359062187,1745685041306,-465.62103783,0.00019899,2]
[359062188,1745685041316,-598.07,0.00019899,2]
[359062189,1745685041327,-400.0,0.00019899,2]
[359062190,1745685041337,-400.0,0.00019899,2]
[359062191,1745685041347,-400.0,0.00019899,2]
[359062192,1745685041357,-400.0,0.00019899,2]
[359062193,1745685041367,-400.0,0.00019899,2]
[359062194,1745685041377,-630.55,0.00019899,2]
[359062195,1745685041387,-400.0,0.00019899,2]
[359062196,1745685041398,-1025.49,0.00019899,2]
[359062197,1745685041408,-400.0,0.00019899,2]
[359062198,1745685041419,-434.97,0.00019899,2]
[359062199,1745685041430,-400.0,0.00019899,2]
[359062200,1745685041441,-514.41,0.00019899,2]
[359062201,1745685041452,-400.0,0.00019899,2]
[359062202,1745685041462,-485.06411496,0.00019899,2]
[359062203,1745685041472,-400.0,0.00019899,2]
[359062204,1745685041482,-400.0,0.00019899,2]
[359062205,1745685041491,-400.0,0.00019899,2]
[359062206,1745685041501,-400.0,0.00019899,2]
[359062207,1745685041511,-400.0,0.00019899,2]
[359062208,1745685041521,-400.0,0.00019899,2]
[359062209,1745685041531,-400.0,0.00019899,2]
[359062210,1745685041541,-400.0,0.00019899,2]
[359062211,1745685041551,-400.0,0.00019899,2]
[359062212,1745685041560,-400.0,0.00019899,2]
[359062213,1745685041570,-658.11,0.00019899,2]
[359062214,1745685041591,-762.62,0.00019899,2]
[359062215,1745685041602,-400.0,0.00019899,2]
[359062216,1745685041612,-400.0,0.00019899,2]
[359062217,1745685041622,-925.33,0.00019899,2]
[359062218,1745685041632,-400.0,0.00019899,2]
[359062219,1745685041642,-575.24,0.00019899,2]
[359062220,1745685041652,-400.0,0.00019899,2]
[359062221,1745685041661,-1092.24,0.00019899,2]
[359062222,1745685041671,-400.0,0.00019899,2]
[359062223,1745685041682,-502.1,0.00019899,2]
[359062224,1745685041692,-631.46,0.00019899,2]
[359062225,1745685041702,-400.0,0.00019899,2]
[359062226,1745685041712,-400.0,0.00019899,2]
[359062227,1745685041722,-704.61,0.00019899,2]
[359062228,1745685041731,-400.0,0.00019899,2]
[359062229,1745685041742,-400.0,0.00019899,2]
[359062230,1745685041752,-427.88732377,0.00019899,2]
[359062231,1745685041762,-704.55,0.00019899,2]
[359062232,1745685041771,-400.0,0.00019899,2]
[359062233,1745685041781,-626.87,0.00019899,2]
[359062234,1745685041791,-400.0,0.00019899,2]
[359062235,1745685041801,-169.18094099,0.00019899,2]
[359062236,1745685041811,-400.0,0.00019899,2]
[359062237,1745685041821,-299.75946424,0.00019899,2]
[359062238,1745685041831,-460.30127748,0.00019899,2]
[359062239,1745685041841,-420.52100749,0.00019899,2]
[359062240,1745685041850,-774.6,0.00019899,2]
[359062241,1745685041860,-400.0,0.00019899,2]
[359062242,1745685041870,-370.25327974,0.00019899,2]
[359062243,1745685041880,-400.0,0.00019899,2]
[359062244,1745685041890,-400.0,0.00019899,2]
[359062245,1745685041900,-400.0,0.00019899,2]
[359062246,1745685041909,-400.0,0.00019899,2]
[359062247,1745685041919,-400.0,0.00019899,2]
[359062248,1745685041929,-400.0,0.00019899,2]
[359062249,1745685041939,-574.38,0.00019899,2]
[359062250,1745685041949,-400.0,0.00019899,2]
[359062251,1745685041959,-400.0,0.00019899,2]
[359062252,1745685041968,-400.0,0.00019899,2]
[359062253,1745685041978,-400.0,0.00019899,2]
[359062254,1745685041988,-400.0,0.00019899,2]
[359062255,1745685041998,-400.0,0.00019899,2]
[359062256,1745685042012,-601.97,0.00019899,2]
[359062257,1745685042022,-400.0,0.00019899,2]
[359062258,1745685042032,-490.46,0.00019899,2]
[359062259,1745685042042,-400.0,0.00019899,2]
[359062260,1745685042052,-400.0,0.00019899,2]
[359062261,1745685042061,-400.0,0.00019899,2]
[359062262,1745685042071,-400.0,0.00019899,2]
[359062263,1745685042081,-758.13,0.00019899,2]
[359062264,1745685042090,-400.0,0.00019899,2]
[359062265,1745685042100,-400.0,0.00019899,2]
[359062266,1745685042111,-400.0,0.00019899,2]
[359062267,1745685042121,-469.78,0.00019899,2]
[359062268,1745685042134,-400.0,0.00019899,2]
[359062269,1745685042145,-400.0,0.00019899,2]
[359062270,1745685042155,-400.0,0.00019899,2]
[359062271,1745685042166,-400.0,0.00019899,2]
[359062272,1745685042177,-735.43,0.00019899,2]
[359062273,1745685042188,-400.0,0.00019899,2]
[359062274,1745685042199,-407.13,0.00019899,2]
[359062275,1745685042212,-400.0,0.00019899,2]
[359062276,1745685042224,-400.0,0.00019899,2]
[359062277,1745685042235,-400.0,0.00019899,2]
[359062278,1745685042245,-400.0,0.00019899,2]
[359062279,1745685042257,-400.0,0.00019899,2]
[359062280,1745685042267,-400.0,0.00019899,2]
[359062281,1745685042619,-609.09,0.00019899,2]
[359062282,1745685042629,-400.0,0.00019899,2]
[359062283,1745685042638,-400.0,0.00019899,2]
[359062284,1745685042648,-400.0,0.00019899,2]
[359062285,1745685042658,-508.27,0.00019899,2]
[359062286,1745685042667,-400.0,0.00019899,2]
[359062287,1745685042676,-524.04,0.00019899,2]
[359062288,1745685042686,-400.0,0.00019899,2]
[359062289,1745685042695,-200.0,0.00019899,2]
[359062290,1745685042705,-400.0,0.00019899,2]
[359062291,1745685042714,-400.0,0.00019899,2]
[359062292,1745685042724,-458.22,0.00019899,2]
[359062293,1745685042733,-400.0,0.00019899,2]
[359062294,1745685042743,-400.0,0.00019899,2]
[359062295,1745685042753,-400.0,0.00019899,2]
[359062296,1745685042762,-400.0,0.00019899,2]
[359062297,1745685042771,-400.0,0.00019899,2]
[359062298,1745685042780,-400.0,0.00019899,2]
[359062299,1745685042790,-400.0,0.00019899,2]
[359062300,1745685042800,-400.0,0.00019899,2]
[359062301,1745685042809,-412.61,0.00019899,2]
[359062302,1745685042819,-400.0,0.00019899,2]
[359062303,1745685042829,-400.0,0.00019899,2]
[359062304,1745685042838,-792.48,0.00019899,2]
[359062305,1745685042848,-25.33874986,0.00019899,2]
[359062306,1745685043572,-907.36,0.00019896,2]
[359062307,1745685043583,-520.13,0.00019896,2]
[359062308,1745685043593,-537.27,0.00019896,2]
[359062309,1745685043603,-178.46507476,0.00019899,2]
[359062310,1745685043612,-400.0,0.00019899,2]
[359062311,1745685043622,-400.0,0.00019899,2]
[359062312,1745685043631,-400.0,0.00019899,2]
[359062313,1745685043641,-400.0,0.00019899,2]
[359062314,1745685043651,-400.0,0.00019899,2]
[359062315,1745685043660,-200.0,0.00019899,2]
[359062316,1745685043670,-400.0,0.00019899,2]
[359062317,1745685043679,-444.44,0.00019899,2]
[359062318,1745685043689,-400.0,0.00019899,2]
[359062319,1745685043699,-400.0,0.00019899,2]
[359062320,1745685043708,-400.0,0.00019899,2]
[359062321,1745685043718,-400.0,0.00019899,2]
[359062322,1745685043727,-471.7,0.00019899,2]
[359062323,1745685043737,-300.0,0.00019899,2]
[359062324,1745685043746,-883.25,0.00019899,2]
[359062326,1745685043756,-737.03,0.00019899,2]
[359062327,1745685043765,-400.0,0.00019899,2]
[359062328,1745685043775,-5000.49,0.00019899,2]
[359062329,1745685043784,-200.0,0.00019899,2]
[359062330,1745685043794,-454.79,0.00019899,2]
[359062331,1745685043804,-400.0,0.00019899,2]
[359062332,1745685043814,-469.05,0.00019899,2]
[359062333,1745685043825,-200.0,0.00019899,2]
[359062334,1745685043835,-400.0,0.00019899,2]
[359062335,1745685043844,-400.0,0.00019899,2]
[359062336,1745685043854,-651.17,0.00019899,2]
[359062337,1745685043863,-700.06,0.00019899,2]
[359062338,1745685043873,-478.22007427,0.00019899,2]
[359062339,1745685043882,-200.0,0.00019899,2]
[359062340,1745685043892,-459.5,0.00019899,2]
[359062341,1745685043903,-400.0,0.00019899,2]
[359062342,1745685043912,-533.23,0.00019899,2]
[359062343,1745685043922,-400.0,0.00019899,2]
[359062344,1745685043932,-400.0,0.00019899,2]
[359062345,1745685043941,-500.95,0.00019899,2]
[359062346,1745685043951,-400.0,0.00019899,2]
[359062347,1745685043961,-202.16757168,0.00019899,2]
[359062348,1745685043970,-400.0,0.00019899,2]
[359062349,1745685043980,-400.0,0.00019899,2]
[359062350,1745685043990,-744.74,0.00019899,2]
[359062351,1745685044000,-896.12,0.00019899,2]
[359062352,1745685044010,-652.4,0.00019899,2]
[359062353,1745685044019,-400.0,0.00019899,2]
[359062354,1745685044029,-253.30116405,0.00019899,2]
[359062355,1745685044039,-400.0,0.00019899,2]
[359062356,1745685044049,-400.0,0.00019899,2]
[359062357,1745685044058,-425.88,0.00019899,2]
[359062358,1745685044068,-400.0,0.00019899,2]
[359062359,1745685044078,-400.0,0.00019899,2]
[359062360,1745685044088,-400.0,0.00019899,2]
[359062361,1745685044097,-1046.16,0.00019899,2]
[359062362,1745685044108,-400.0,0.00019899,2]
[359062363,1745685044118,-400.0,0.00019899,2]
[359062364,1745685044128,-417.94,0.00019899,2]
[359062365,1745685044142,-614.72,0.00019899,2]
[359062366,1745685044155,-400.0,0.00019899,2]
[359062367,1745685044167,-200.0,0.00019899,2]
[359062368,1745685044176,-784.09,0.00019899,2]
[359062369,1745685044187,-400.0,0.00019899,2]
[359062370,1745685044197,-400.0,0.00019899,2]
[359062371,1745685044207,-400.0,0.00019899,2]
[359062372,1745685044216,-452.91,0.00019899,2]
[359062373,1745685044226,-400.0,0.00019899,2]
[359062374,1745685044236,-512.74,0.00019899,2]
[359062375,1745685044246,-400.0,0.00019899,2]
[359062376,1745685044255,-400.0,0.00019899,2]
[359062377,1745685044266,-400.0,0.00019899,2]
[359062378,1745685044275,-400.0,0.00019899,2]
[359062379,1745685044285,-223.97578909,0.00019899,2]
[359062380,1745685044295,-400.0,0.00019899,2]
[359062381,1745685044305,-400.0,0.00019899,2]
[359062382,1745685044315,-400.0,0.00019899,2]
[359062383,1745685044325,-594.74,0.00019899,2]
[359062384,1745685044335,-400.0,0.00019899,2]
[359062385,1745685044344,-400.0,0.00019899,2]
[359062386,1745685044354,-400.0,0.00019899,2]
[359062387,1745685044365,-731.47,0.00019899,2]
[359062388,1745685044375,-467.49,0.00019899,2]
[359062389,1745685044386,-400.0,0.00019899,2]
[359062390,1745685044397,-511.39,0.00019899,2]
[359062391,1745685044408,-535.23,0.00019899,2]
[359062392,1745685044418,-400.0,0.00019899,2]
[359062393,1745685044429,-606.79,0.00019899,2]
[359062394,1745685044438,-400.0,0.00019899,2]
[359062395,1745685044448,-400.0,0.00019899,2]
[359062396,1745685044459,-400.0,0.00019899,2]
[359062397,1745685044469,-400.0,0.00019899,2]
[359062398,1745685044479,-202.72115054,0.00019899,2]
[359062399,1745685044488,-257.71590563,0.00019899,2]
[359062400,1745685044499,-200.0,0.00019899,2]
[359062401,1745685044509,-400.0,0.00019899,2]
[359062402,1745685044519,-400.0,0.00019899,2]
[359062403,1745685044529,-261.81966742,0.00019899,2]
[359062404,1745685044539,-400.0,0.00019899,2]
[359062405,1745685044549,-549.26,0.00019899,2]
[359062406,1745685044558,-453.83855571,0.00019899,2]
[359062407,1745685044568,-400.0,0.00019899,2]
[359062408,1745685044578,-400.0,0.00019899,2]
[359062409,1745685044588,-400.0,0.00019899,2]
[359062410,1745685044598,-400.0,0.00019899,2]
[359062411,1745685044608,-1757.72,0.00019899,2]
[359062412,1745685044618,-400.0,0.00019899,2]
[359062413,1745685044628,-400.0,0.00019899,2]
[359062414,1745685044638,-513.6,0.00019899,2]
[359062415,1745685044648,-809.44,0.00019899,2]
[359062416,1745685044657,-400.0,0.00019899,2]
[359062417,1745685044667,-431.47494516,0.000199,2]
[359062418,1745685044676,-455.4587,0.000199,2]
[359062419,1745685044686,-4635.8633,0.000199,2]
[359062420,1745685044697,-896.7283,0.000199,2]
[359062421,1745685044707,-14924.14589539,0.000199,2]
[359062422,1745685045214,-18997.65001765,0.000199,2]
[359062423,1745685045224,-180.92928944,0.000199,2]
[359062424,1745685045235,-4421.42069291,0.000199,2]
[359062425,1745685045263,-86488.40563332,0.000199,2]
[359062426,1745685045272,-170.20775911,0.000199,2]
[359062427,1745685045281,-15197.74914028,0.000199,2]
[359062428,1745685045291,-505.69828932,0.000199,2]
[359062429,1745685045301,-3609.32754987,0.000199,2]
[359062430,1745685045310,-155.96257902,0.000199,2]
[359062431,1745685045321,-885.18832424,0.000199,2]
[359062432,1745685045332,-500.0,0.00019924,2]
[359062433,1745685045342,-2293.0,0.00019924,2]
[359062434,1745685045352,-500.0,0.00019924,2]
[359062435,1745685045362,-500.0,0.00019924,2]
[359062436,1745685045372,-500.0,0.00019924,2]
[359062437,1745685045382,-604.04000324,0.00019924,2]
[359062438,1745685045392,-500.0,0.00019924,2]
[359062439,1745685045402,-500.0,0.00019924,2]
[359062440,1745685045413,-150.0,0.00019924,2]
[359062441,1745685045423,-500.0,0.00019924,2]
[359062442,1745685045433,-150.0,0.00019924,2]
[359062443,1745685045444,-150.0,0.00019924,2]
[359062444,1745685045455,-164.34432765,0.00019924,2]
[359062445,1745685045465,-500.0,0.00019924,2]
[359062446,1745685045475,-500.0,0.00019924,2]
[359062447,1745685045485,-500.0,0.00019952,2]
[359062448,1745685045495,-2293.0,0.00019952,2]
[359062449,1745685045506,-500.0,0.00019952,2]
[359062450,1745685045516,-500.0,0.00019952,2]
[359062451,1745685045526,-500.0,0.00019952,2]
[359062452,1745685045537,-500.0,0.00019952,2]
[359062453,1745685045546,-500.0,0.00019952,2]